{"text_format":"3","workbook":"xlsx","n_sheets":2,"sheets":["Início","Folha de ponto anual"],"not_rendered":{"defined_names":2},"read":"whole","date_system":"1900"}

{"sheet":"Início","index":0,"n_rows":8,"n_cols":2,"rows_kept":8}
[null,"Sobre este modelo"]
[null,"Controle as horas diárias, semanais, mensais e anuais neste cartão de ponto de funcionário."]
[null,"Preencha as informações básicas como nome do funcionário, nome do gerente, email e número de telefone. "]
[null,"Adicione as horas em cada tabela mensal. Registre as horas regulares e as horas extras em colunas separadas para cada dia da semana. "]
[null,"Os totais de horas trabalhadas, horas normais e horas extras são calculados automaticamente. "]
[null,"Observações:  "]
[null,"Instruções adicionais foram fornecidas na coluna A da planilha QUADRO DE HORÁRIOS ANUAL. Este texto está oculto de propósito. Para removê-lo, selecione a coluna A e selecione Excluir. Para reexibir o texto, selecione a coluna A e altere a cor da fonte. "]
[null,"Para saber mais sobre tabelas, pressione SHIFT e, em seguida, F10 dentro de uma tabela, selecione a opção TABELA e, em seguida, selecione TEXTO ALTERNATIVO."]

{"sheet":"Folha de ponto anual","index":1,"n_rows":138,"n_cols":15,"rows_kept":138,"merged":[[1,1,22,1],[1,5,1,6],[2,5,2,6],[3,5,3,6]]}
[]
[null,"CARTÃO DE PONTO DO FUNCIONÁRIO",null,null,"Nome do funcionário:","Davi Barros",null,"Horas normais:",null,"Horas extras:",null,"Total",null,"Gerente:"]
[{"$nulls":4},"Email:","davi@example.com",null,{"$f":"HrsNormais","v":400},null,{"$f":"Hrs_extras","v":2},null,{"$f":"HrsNormais+Hrs_extras","v":402},null,"Gael Torres"]
[{"$nulls":4},"Telefone:","(11) 1234-5678"]
[]
[]
[" ",{"$nulls":3},"Janeiro, fevereiro, março   |   Cartão de ponto do funcionário: diário, semanal, mensal, anual"]
[" ",{"$nulls":3},"Janeiro","Semana 1","Horas extras","Semana 2","Horas extras  ","Semana 3","Horas extras   ","Semana 4","Horas extras    ","Semana 5","Horas extras     "]
[" ",{"$nulls":3},"Segunda",{"v":8,"d":"8.0"},null,{"v":8,"d":"8.0"},null,{"v":8,"d":"8.0"},null,{"v":8,"d":"8.0"},null,{"v":8,"d":"8.0"}]
[" ",{"$nulls":3},"Terça-feira",{"v":8,"d":"8.0"},{"v":2,"d":"2.0"},{"v":8,"d":"8.0"},null,{"v":8,"d":"8.0"},null,{"v":8,"d":"8.0"},null,{"v":8,"d":"8.0"}]
[" ",{"$nulls":3},"Quarta-feira",{"v":8,"d":"8.0"},null,{"v":8,"d":"8.0"},null,{"v":8,"d":"8.0"},null,{"v":8,"d":"8.0"},null,{"v":8,"d":"8.0"}]
[{"$nulls":4},"Quinta-feira",{"v":8,"d":"8.0"},null,{"v":8,"d":"8.0"},null,{"v":8,"d":"8.0"},null,{"v":8,"d":"8.0"},null,{"v":8,"d":"8.0"}]
[{"$nulls":4},"Sexta-feira",{"v":8,"d":"8.0"},null,{"v":8,"d":"8.0"},null,{"v":8,"d":"8.0"},null,{"v":8,"d":"8.0"},null,{"v":8,"d":"8.0"}]
[{"$nulls":4},"Sábado"]
[" ",{"$nulls":3},"Domingo"]
[" ",{"$nulls":3},"Total de horas semanal",{"$f":"SUM(F9:F15)","v":{"v":40,"d":"40.0"}},{"v":2,"d":"2.0"},{"v":40,"d":"40.0"},{"v":0,"d":"0.0"},{"v":40,"d":"40.0"},{"v":0,"d":"0.0"},{"v":40,"d":"40.0"},{"v":0,"d":"0.0"},{"v":40,"d":"40.0"},{"v":0,"d":"0.0"}]
[" ",{"$nulls":3},{"$f":"TEXT(DATEVALUE(Janeiro[[#Headers],[Janeiro]]&\"  \"&YEAR(TODAY())),\"mmm.\")&\" Total: Horas normais\"","v":"jan. Total: Horas normais"},{"$f":"SUM(Janeiro[Semana 1],Janeiro[Semana 2],Janeiro[Semana 3],Janeiro[Semana 4],Janeiro[Semana 5])","v":{"v":200,"d":"200.0"}},{"$nulls":5},{"$f":"TEXT(DATEVALUE(Janeiro[[#Headers],[Janeiro]]&\"  \"&YEAR(TODAY())),\"mmm.\")&\" total: Horas extras\"","v":"jan. total: Horas extras"},null,{"$f":"SUM(Janeiro[Horas extras],Janeiro[[Horas extras  ]],Janeiro[[Horas extras   ]],Janeiro[[Horas extras    ]],Janeiro[[Horas extras     ]])","v":{"v":2,"d":"2.0"}}]
[]
[" ",{"$nulls":3},"Fevereiro","Semana 1","Horas extras","Semana 2","Horas extras  ","Semana 3","Horas extras   ","Semana 4","Horas extras    ","Semana 5","Horas extras     "]
[{"$nulls":4},"Segunda",{"v":8,"d":"8.0"},null,{"v":8,"d":"8.0"},null,{"v":8,"d":"8.0"},null,{"v":8,"d":"8.0"},null,{"v":8,"d":"8.0"}]
[{"$nulls":4},"Terça-feira",{"v":8,"d":"8.0"},{"v":2,"d":"2.0"},{"v":8,"d":"8.0"},null,{"v":8,"d":"8.0"},null,{"v":8,"d":"8.0"},null,{"v":8,"d":"8.0"}]
[{"$nulls":4},"Quarta-feira",{"v":8,"d":"8.0"},null,{"v":8,"d":"8.0"},null,{"v":8,"d":"8.0"},null,{"v":8,"d":"8.0"},null,{"v":8,"d":"8.0"}]
[{"$nulls":4},"Quinta-feira",{"v":8,"d":"8.0"},null,{"v":8,"d":"8.0"},null,{"v":8,"d":"8.0"},3.5,{"v":8,"d":"8.0"},null,{"v":8,"d":"8.0"}]
[{"$nulls":4},"Sexta-feira",{"v":8,"d":"8.0"},null,{"v":8,"d":"8.0"},null,{"v":8,"d":"8.0"},null,{"v":8,"d":"8.0"},null,{"v":8,"d":"8.0"}]
[{"$nulls":4},"Sábado"]
[{"$nulls":4},"Domingo"]
[{"$nulls":4},"Total de horas semanal",{"$f":"SUM(F20:F26)","v":{"v":40,"d":"40.0"}},{"v":2,"d":"2.0"},{"v":40,"d":"40.0"},{"v":0,"d":"0.0"},{"v":40,"d":"40.0"},3.5,{"v":40,"d":"40.0"},{"v":0,"d":"0.0"},{"v":40,"d":"40.0"},{"v":0,"d":"0.0"}]
[" ",{"$nulls":3},{"$f":"TEXT(DATEVALUE(Fevereiro[[#Headers],[Fevereiro]]&\"  \"&YEAR(TODAY())),\"mmm.\")&\" total: Horas normais\"","v":"fev. total: Horas normais"},{"$f":"SUM(Fevereiro[Semana 1],Fevereiro[Semana 2],Fevereiro[Semana 3],Fevereiro[Semana 4],Fevereiro[Semana 5])","v":{"v":200,"d":"200.0"}},{"$nulls":5},{"$f":"TEXT(DATEVALUE(Fevereiro[[#Headers],[Fevereiro]]&\" \"&YEAR(TODAY())),\"mmm.\")&\" total: Horas extras\"","v":"fev. total: Horas extras"},null,{"$f":"SUM(Fevereiro[Horas extras],Fevereiro[[Horas extras  ]],Fevereiro[[Horas extras   ]],Fevereiro[[Horas extras    ]],Fevereiro[[Horas extras     ]])","v":5.5}]
[]
[" ",{"$nulls":3},"Março","Semana 1","Horas extras","Semana 2","Horas extras  ","Semana 3","Horas extras ","Semana 4","Horas extras    ","Semana 5","Horas extras     "]
[{"$nulls":4},"Segunda"]
[{"$nulls":4},"Terça-feira"]
[{"$nulls":4},"Quarta-feira"]
[{"$nulls":4},"Quinta-feira"]
[{"$nulls":4},"Sexta-feira"]
[{"$nulls":4},"Sábado"]
[{"$nulls":4},"Domingo"]
[{"$nulls":4},"Total de horas semanal",{"$f":"SUM(F31:F37)","v":{"v":0,"d":"0.0"}},{"v":0,"d":"0.0"},{"v":0,"d":"0.0"},{"v":0,"d":"0.0"},{"v":0,"d":"0.0"},{"v":0,"d":"0.0"},{"v":0,"d":"0.0"},{"v":0,"d":"0.0"},{"v":0,"d":"0.0"},{"v":0,"d":"0.0"}]
[" ",{"$nulls":3},{"$f":"TEXT(DATEVALUE(Março[[#Headers],[Março]]&\" \"&YEAR(TODAY())),\"mmm.\")&\" total: Horas normais\"","v":"mar. total: Horas normais"},{"$f":"SUM(Março[Semana 1],Março[Semana 2],Março[Semana 3],Março[Semana 4],Março[Semana 5])","v":{"v":0,"d":"0.0"}},{"$nulls":5},{"$f":"TEXT(DATEVALUE(Março[[#Headers],[Março]]&\" \"&YEAR(TODAY())),\"mmm.\")&\" total: Horas extras\"","v":"mar. total: Horas extras"},null,{"$f":"SUM(Março[Horas extras],Março[[Horas extras  ]],Março[[Horas extras ]],Março[[Horas extras    ]],Março[[Horas extras     ]])","v":{"v":0,"d":"0.0"}}]
[" ",{"$nulls":3},"Abril, maio, junho   |   Cartão de Ponto do Funcionário: Diário, semanal, mensal, anual"]
[" ",{"$nulls":3},"Abril","Semana 1","Horas extras","Semana 2","Horas extras  ","Semana 3","Horas extras   ","Semana 4","Horas extras    ","Semana 5","Horas extras     "]
[{"$nulls":4},"Segunda"]
[{"$nulls":4},"Terça-feira"]
[{"$nulls":4},"Quarta-feira"]
[{"$nulls":4},"Quinta-feira"]
[{"$nulls":4},"Sexta-feira"]
[{"$nulls":4},"Sábado"]
[{"$nulls":4},"Domingo"]
[{"$nulls":4},"Total de horas semanal",{"$f":"SUM(F42:F48)","v":{"v":0,"d":"0.0"}},{"v":0,"d":"0.0"},{"v":0,"d":"0.0"},{"v":0,"d":"0.0"},{"v":0,"d":"0.0"},{"v":0,"d":"0.0"},{"v":0,"d":"0.0"},{"v":0,"d":"0.0"},{"v":0,"d":"0.0"},{"v":0,"d":"0.0"}]
[" ",{"$nulls":3},{"$f":"TEXT(DATEVALUE(Abril[[#Headers],[Abril]]&\" \"&YEAR(TODAY())),\"mmm.\")&\" total: Horas normais\"","v":"abr. total: Horas normais"},{"$f":"SUM(Abril[Semana 1],Abril[Semana 2],Abril[Semana 3],Abril[Semana 4],Abril[Semana 5])","v":{"v":0,"d":"0.0"}},{"$nulls":5},{"$f":"TEXT(DATEVALUE(Abril[[#Headers],[Abril]]&\" \"&YEAR(TODAY())),\"mmm.\")&\" total: Horas extras\"","v":"abr. total: Horas extras"},null,{"$f":"SUM(Abril[Horas extras],Abril[[Horas extras  ]],Abril[[Horas extras   ]],Abril[[Horas extras    ]],Abril[[Horas extras     ]])","v":{"v":0,"d":"0.0"}}]
[]
[" ",{"$nulls":3},"Maio","Semana 1","Horas extras","Semana 2","Horas extras  ","Semana 3","Horas extras   ","Semana 4","Horas extras    ","Semana 5","Horas extras     "]
[{"$nulls":4},"Segunda"]
[{"$nulls":4},"Terça-feira"]
[{"$nulls":4},"Quarta-feira"]
[{"$nulls":4},"Quinta-feira"]
[{"$nulls":4},"Sexta-feira"]
[{"$nulls":4},"Sábado"]
[{"$nulls":4},"Domingo"]
[{"$nulls":4},"Total de horas semanal",{"$f":"SUM(F53:F59)","v":{"v":0,"d":"0.0"}},{"v":0,"d":"0.0"},{"v":0,"d":"0.0"},{"v":0,"d":"0.0"},{"v":0,"d":"0.0"},{"v":0,"d":"0.0"},{"v":0,"d":"0.0"},{"v":0,"d":"0.0"},{"v":0,"d":"0.0"},{"v":0,"d":"0.0"}]
[" ",{"$nulls":3},{"$f":"TEXT(DATEVALUE(Mai[[#Headers],[Maio]]&\" \"&YEAR(TODAY())),\"mmm.\")&\" total: Horas normais\"","v":"mai. total: Horas normais"},{"$f":"SUM(Mai[Semana 1],Mai[Semana 2],Mai[Semana 3],Mai[Semana 4],Mai[Semana 5])","v":{"v":0,"d":"0.0"}},{"$nulls":5},{"$f":"TEXT(DATEVALUE(Mai[[#Headers],[Maio]]&\" \"&YEAR(TODAY())),\"mmm.\")&\" total: Horas extras\"","v":"mai. total: Horas extras"},null,{"$f":"SUM(Mai[Horas extras],Mai[[Horas extras  ]],Mai[[Horas extras   ]],Mai[[Horas extras    ]],Mai[[Horas extras     ]])","v":{"v":0,"d":"0.0"}}]
[]
[" ",{"$nulls":3},"Junho","Semana 1","Horas extras","Semana 2","Horas extras  ","Semana 3","Horas extras   ","Semana 4","Horas extras    ","Semana 5","Horas extras     "]
[{"$nulls":4},"Segunda"]
[{"$nulls":4},"Terça-feira"]
[{"$nulls":4},"Quarta-feira"]
[{"$nulls":4},"Quinta-feira"]
[{"$nulls":4},"Sexta-feira"]
[{"$nulls":4},"Sábado"]
[{"$nulls":4},"Domingo"]
[{"$nulls":4},"Total de horas semanal",{"$f":"SUM(F64:F70)","v":{"v":0,"d":"0.0"}},{"v":0,"d":"0.0"},{"v":0,"d":"0.0"},{"v":0,"d":"0.0"},{"v":0,"d":"0.0"},{"v":0,"d":"0.0"},{"v":0,"d":"0.0"},{"v":0,"d":"0.0"},{"v":0,"d":"0.0"},{"v":0,"d":"0.0"}]
[" ",{"$nulls":3},{"$f":"TEXT(DATEVALUE(Junho[[#Headers],[Junho]]&\" \"&YEAR(TODAY())),\"mmm.\")&\" total: Horas normais\"","v":"jun. total: Horas normais"},{"$f":"SUM(Junho[Semana 1],Junho[Semana 2],Junho[Semana 3],Junho[Semana 4],Junho[Semana 5])","v":{"v":0,"d":"0.0"}},{"$nulls":5},{"$f":"TEXT(DATEVALUE(Junho[[#Headers],[Junho]]&\" \"&YEAR(TODAY())),\"mmm.\")&\" total: Horas extras\"","v":"jun. total: Horas extras"},null,{"$f":"SUM(Junho[Horas extras],Junho[[Horas extras  ]],Junho[[Horas extras   ]],Junho[[Horas extras    ]],Junho[[Horas extras     ]])","v":{"v":0,"d":"0.0"}}]
[" ",{"$nulls":3},"Julho, agosto, setembro   |   Cartão de Ponto do Funcionário: Diário, semanal, mensal, anual"]
[" ",{"$nulls":3},"Julho","Semana 1","Horas extras","Semana 2","Horas extras ","Semana 3","Horas extras  ","Semana 4","Horas extras   ","Semana 5","Horas extras     "]
[{"$nulls":4},"Segunda"]
[{"$nulls":4},"Terça-feira"]
[{"$nulls":4},"Quarta-feira"]
[{"$nulls":4},"Quinta-feira"]
[{"$nulls":4},"Sexta-feira"]
[{"$nulls":4},"Sábado"]
[{"$nulls":4},"Domingo"]
[{"$nulls":4},"Total de horas semanal",{"$f":"SUM(F75:F81)","v":{"v":0,"d":"0.0"}},{"v":0,"d":"0.0"},{"v":0,"d":"0.0"},{"v":0,"d":"0.0"},{"v":0,"d":"0.0"},{"v":0,"d":"0.0"},{"v":0,"d":"0.0"},{"v":0,"d":"0.0"},{"v":0,"d":"0.0"},{"v":0,"d":"0.0"}]
[" ",{"$nulls":3},{"$f":"TEXT(DATEVALUE(Julho[[#Headers],[Julho]]&\" \"&YEAR(TODAY())),\"mmm.\")&\" total: Horas normais\"","v":"jul. total: Horas normais"},{"$f":"SUM(Julho[Semana 1],Julho[Semana 2],Julho[Semana 3],Julho[Semana 4],Julho[Semana 5])","v":{"v":0,"d":"0.0"}},{"$nulls":5},{"$f":"TEXT(DATEVALUE(Julho[[#Headers],[Julho]]&\" \"&YEAR(TODAY())),\"mmm.\")&\" total: Horas extras\"","v":"jul. total: Horas extras"},null,{"$f":"SUM(Julho[Horas extras],Julho[[Horas extras ]],Julho[[Horas extras  ]],Julho[[Horas extras   ]],Julho[[Horas extras     ]])","v":{"v":0,"d":"0.0"}}]
[]
[" ",{"$nulls":3},"Agosto","Semana 1","Horas extras","Semana 2","Horas extras ","Semana 3","Horas extras   ","Semana 4","Horas extras  ","Semana 5","Horas extras    "]
[{"$nulls":4},"Segunda"]
[{"$nulls":4},"Terça-feira"]
[{"$nulls":4},"Quarta-feira"]
[{"$nulls":4},"Quinta-feira"]
[{"$nulls":4},"Sexta-feira"]
[{"$nulls":4},"Sábado"]
[{"$nulls":4},"Domingo"]
[{"$nulls":4},"Total de horas semanal",{"$f":"SUBTOTAL(109,Agosto[Semana 1])","v":{"v":0,"d":"0.0"}},{"$f":"SUBTOTAL(109,Agosto[Horas extras])","v":{"v":0,"d":"0.0"}},{"$f":"SUBTOTAL(109,Agosto[Semana 2])","v":{"v":0,"d":"0.0"}},{"$f":"SUBTOTAL(109,Agosto[[Horas extras ]])","v":{"v":0,"d":"0.0"}},{"$f":"SUBTOTAL(109,Agosto[Semana 3])","v":{"v":0,"d":"0.0"}},{"$f":"SUBTOTAL(109,Agosto[[Horas extras   ]])","v":{"v":0,"d":"0.0"}},{"$f":"SUBTOTAL(109,Agosto[Semana 4])","v":{"v":0,"d":"0.0"}},{"$f":"SUBTOTAL(109,Agosto[[Horas extras  ]])","v":{"v":0,"d":"0.0"}},{"$f":"SUBTOTAL(109,Agosto[Semana 5])","v":{"v":0,"d":"0.0"}},{"$f":"SUBTOTAL(109,Agosto[[Horas extras    ]])","v":{"v":0,"d":"0.0"}}]
[" ",{"$nulls":3},{"$f":"TEXT(DATEVALUE(Agosto[[#Headers],[Agosto]]&\" \"&YEAR(TODAY())),\"mmm.\")&\" total: Horas normais\"","v":"ago. total: Horas normais"},{"$f":"SUM(Agosto[Semana 1],Agosto[Semana 2],Agosto[Semana 3],Agosto[Semana 4],Agosto[Semana 5])","v":{"v":0,"d":"0.0"}},{"$nulls":5},{"$f":"TEXT(DATEVALUE(Agosto[[#Headers],[Agosto]]&\" \"&YEAR(TODAY())),\"mmm.\")&\" total: Horas extras\"","v":"ago. total: Horas extras"},null,{"$f":"SUM(Agosto[Horas extras],Agosto[[Horas extras ]],Agosto[[Horas extras   ]],Agosto[[Horas extras  ]],Agosto[[Horas extras    ]])","v":{"v":0,"d":"0.0"}}]
[]
[" ",{"$nulls":3},"Setembro","Semana 1","Horas extras","Semana 2","Horas extras ","Semana 3","Horas extras  ","Semana 4","Horas extras   ","Semana 5","Horas extras    "]
[{"$nulls":4},"Segunda"]
[{"$nulls":4},"Terça-feira"]
[{"$nulls":4},"Quarta-feira"]
[{"$nulls":4},"Quinta-feira"]
[{"$nulls":4},"Sexta-feira"]
[{"$nulls":4},"Sábado"]
[{"$nulls":4},"Domingo"]
[{"$nulls":4},"Total de horas semanal",{"$f":"SUBTOTAL(109,Setembro[Semana 1])","v":{"v":0,"d":"0.0"}},{"$f":"SUBTOTAL(109,Setembro[Horas extras])","v":{"v":0,"d":"0.0"}},{"$f":"SUBTOTAL(109,Setembro[Semana 2])","v":{"v":0,"d":"0.0"}},{"$f":"SUBTOTAL(109,Setembro[[Horas extras ]])","v":{"v":0,"d":"0.0"}},{"$f":"SUBTOTAL(109,Setembro[Semana 3])","v":{"v":0,"d":"0.0"}},{"$f":"SUBTOTAL(109,Setembro[[Horas extras  ]])","v":{"v":0,"d":"0.0"}},{"$f":"SUBTOTAL(109,Setembro[Semana 4])","v":{"v":0,"d":"0.0"}},{"$f":"SUBTOTAL(109,Setembro[[Horas extras   ]])","v":{"v":0,"d":"0.0"}},{"$f":"SUBTOTAL(109,Setembro[Semana 5])","v":{"v":0,"d":"0.0"}},{"$f":"SUBTOTAL(109,Setembro[[Horas extras    ]])","v":{"v":0,"d":"0.0"}}]
[" ",{"$nulls":3},{"$f":"TEXT(DATEVALUE(Setembro[[#Headers],[Setembro]]&\" \"&YEAR(TODAY())),\"mmm.\")&\" total: Horas normais\"","v":"set. total: Horas normais"},{"$f":"SUM(Setembro[Semana 1],Setembro[Semana 2],Setembro[Semana 3],Setembro[Semana 4],Setembro[Semana 5])","v":{"v":0,"d":"0.0"}},{"$nulls":5},{"$f":"TEXT(DATEVALUE(Setembro[[#Headers],[Setembro]]&\" \"&YEAR(TODAY())),\"mmm.\")&\" total: Horas extras\"","v":"set. total: Horas extras"},null,{"$f":"SUM(Setembro[Horas extras],Setembro[[Horas extras ]],Setembro[[Horas extras  ]],Setembro[[Horas extras   ]],Setembro[[Horas extras    ]])","v":{"v":0,"d":"0.0"}}]
[" ",{"$nulls":3},"Outubro, novembro, dezembro   |   Cartão de Ponto do Funcionário: Diário, semanal, mensal, anual"]
[" ",{"$nulls":3},"Outubro","Semana 1","Horas extras","Semana 2","Horas extras ","Semana 3","Horas extras  ","Semana 4","Horas extras   ","Semana 5","Horas extras    "]
[{"$nulls":4},"Segunda"]
[{"$nulls":4},"Terça-feira"]
[{"$nulls":4},"Quarta-feira"]
[{"$nulls":4},"Quinta-feira"]
[{"$nulls":4},"Sexta-feira"]
[{"$nulls":4},"Sábado"]
[{"$nulls":4},"Domingo"]
[{"$nulls":4},"Total de horas semanal",{"$f":"SUBTOTAL(109,Outubro[Semana 1])","v":{"v":0,"d":"0.0"}},{"$f":"SUBTOTAL(109,Outubro[Horas extras])","v":{"v":0,"d":"0.0"}},{"$f":"SUBTOTAL(109,Outubro[Semana 2])","v":{"v":0,"d":"0.0"}},{"$f":"SUBTOTAL(109,Outubro[[Horas extras ]])","v":{"v":0,"d":"0.0"}},{"$f":"SUBTOTAL(109,Outubro[Semana 3])","v":{"v":0,"d":"0.0"}},{"$f":"SUBTOTAL(109,Outubro[[Horas extras  ]])","v":{"v":0,"d":"0.0"}},{"$f":"SUBTOTAL(109,Outubro[Semana 4])","v":{"v":0,"d":"0.0"}},{"$f":"SUBTOTAL(109,Outubro[[Horas extras   ]])","v":{"v":0,"d":"0.0"}},{"$f":"SUBTOTAL(109,Outubro[Semana 5])","v":{"v":0,"d":"0.0"}},{"$f":"SUBTOTAL(109,Outubro[[Horas extras    ]])","v":{"v":0,"d":"0.0"}}]
[" ",{"$nulls":3},{"$f":"TEXT(DATEVALUE(Outubro[[#Headers],[Outubro]]&\" \"&YEAR(TODAY())),\"mmm.\")&\" total: Horas normais\"","v":"out. total: Horas normais"},{"$f":"SUM(Outubro[Semana 1],Outubro[Semana 2],Outubro[Semana 3],Outubro[Semana 4],Outubro[Semana 5])","v":{"v":0,"d":"0.0"}},{"$nulls":5},{"$f":"TEXT(DATEVALUE(Outubro[[#Headers],[Outubro]]&\" \"&YEAR(TODAY())),\"mmm.\")&\" total: Horas extras\"","v":"out. total: Horas extras"},null,{"$f":"SUM(Outubro[Horas extras],Outubro[[Horas extras ]],Outubro[[Horas extras  ]],Outubro[[Horas extras   ]],Outubro[[Horas extras    ]])","v":{"v":0,"d":"0.0"}}]
[]
[" ",{"$nulls":3},"Novembro","Semana 1","Horas extras","Semana 2","Horas extras ","Semana 3","Horas extras  ","Semana 4","Horas extras    ","Semana 5","Horas extras     "]
[{"$nulls":4},"Segunda"]
[{"$nulls":4},"Terça-feira"]
[{"$nulls":4},"Quarta-feira"]
[{"$nulls":4},"Quinta-feira"]
[{"$nulls":4},"Sexta-feira"]
[{"$nulls":4},"Sábado"]
[{"$nulls":4},"Domingo"]
[{"$nulls":4},"Total de horas semanal",{"$f":"SUBTOTAL(109,Novembro[Semana 1])","v":{"v":0,"d":"0.0"}},{"$f":"SUBTOTAL(109,Novembro[Horas extras])","v":{"v":0,"d":"0.0"}},{"$f":"SUBTOTAL(109,Novembro[Semana 2])","v":{"v":0,"d":"0.0"}},{"$f":"SUBTOTAL(109,Novembro[[Horas extras ]])","v":{"v":0,"d":"0.0"}},{"$f":"SUBTOTAL(109,Novembro[Semana 3])","v":{"v":0,"d":"0.0"}},{"$f":"SUBTOTAL(109,Novembro[[Horas extras  ]])","v":{"v":0,"d":"0.0"}},{"$f":"SUBTOTAL(109,Novembro[Semana 4])","v":{"v":0,"d":"0.0"}},{"$f":"SUBTOTAL(109,Novembro[[Horas extras    ]])","v":{"v":0,"d":"0.0"}},{"$f":"SUBTOTAL(109,Novembro[Semana 5])","v":{"v":0,"d":"0.0"}},{"$f":"SUBTOTAL(109,Novembro[[Horas extras     ]])","v":{"v":0,"d":"0.0"}}]
[" ",{"$nulls":3},{"$f":"TEXT(DATEVALUE(Novembro[[#Headers],[Novembro]]&\" \"&YEAR(TODAY())),\"mmm.\")&\" total: Horas normais\"","v":"nov. total: Horas normais"},{"$f":"SUM(Novembro[Semana 1],Novembro[Semana 2],Novembro[Semana 3],Novembro[Semana 4],Novembro[Semana 5])","v":{"v":0,"d":"0.0"}},{"$nulls":5},{"$f":"TEXT(DATEVALUE(Novembro[[#Headers],[Novembro]]&\" \"&YEAR(TODAY())),\"mmm.\")&\" total: Horas extras\"","v":"nov. total: Horas extras"},null,{"$f":"SUM(Novembro[Horas extras],Novembro[[Horas extras ]],Novembro[[Horas extras  ]],Novembro[[Horas extras    ]],Novembro[[Horas extras     ]])","v":{"v":0,"d":"0.0"}}]
[]
[" ",{"$nulls":3},"Dezembro","Semana 1","Horas Extras","Semana 2","Horas Extras ","Semana 3","Horas Extras  ","Semana 4","Horas Extras   ","Semana 5","Horas extras    "]
[{"$nulls":4},"Segunda"]
[{"$nulls":4},"Terça-feira"]
[{"$nulls":4},"Quarta-feira"]
[{"$nulls":4},"Quinta-feira"]
[{"$nulls":4},"Sexta-feira"]
[{"$nulls":4},"Sábado"]
[{"$nulls":4},"Domingo"]
[{"$nulls":4},"Total de horas semanal",{"$f":"SUBTOTAL(109,Dezembro[Semana 1])","v":{"v":0,"d":"0.0"}},{"$f":"SUBTOTAL(109,Dezembro[Horas Extras])","v":{"v":0,"d":"0.0"}},{"$f":"SUBTOTAL(109,Dezembro[Semana 2])","v":{"v":0,"d":"0.0"}},{"$f":"SUBTOTAL(109,Dezembro[[Horas Extras ]])","v":{"v":0,"d":"0.0"}},{"$f":"SUBTOTAL(109,Dezembro[Semana 3])","v":{"v":0,"d":"0.0"}},{"$f":"SUBTOTAL(109,Dezembro[[Horas Extras  ]])","v":{"v":0,"d":"0.0"}},{"$f":"SUBTOTAL(109,Dezembro[Semana 4])","v":{"v":0,"d":"0.0"}},{"$f":"SUBTOTAL(109,Dezembro[[Horas Extras   ]])","v":{"v":0,"d":"0.0"}},{"$f":"SUBTOTAL(109,Dezembro[Semana 5])","v":{"v":0,"d":"0.0"}},{"$f":"SUBTOTAL(109,Dezembro[[Horas extras    ]])","v":{"v":0,"d":"0.0"}}]
[" ",{"$nulls":3},{"$f":"TEXT(DATEVALUE(Dezembro[[#Headers],[Dezembro]]&\" \"&YEAR(TODAY())),\"mmm.\")&\" total: Horas normais\"","v":"dez. total: Horas normais"},{"$f":"SUM(Dezembro[Semana 1],Dezembro[Semana 2],Dezembro[Semana 3],Dezembro[Semana 4],Dezembro[Semana 5])","v":{"v":0,"d":"0.0"}},{"$nulls":5},{"$f":"TEXT(DATEVALUE(Dezembro[[#Headers],[Dezembro]]&\" \"&YEAR(TODAY())),\"mmm.\")&\" total: Horas extras\"","v":"dez. total: Horas extras"},null,{"$f":"SUM(L130:L136,N130:N136,P130:P136,R130:R136,T130:T136)","v":{"v":0,"d":"0.0"}}]